bitfinex-derivatives/quotes_BNBF0:USTF0_20250221
["timestamp","ask_amount","ask_price","bid_price","bid_amount"]
[1740169322290,0.926,641.73,640.74,0.59846224]
[1740169322490,0.926,641.73,640.75,0.59845737]
[1740169322687,0.926,641.73,640.44,1.40620362]
[1740169322688,0.926,641.73,640.76,0.5984525]
[1740169322891,0.926,641.73,640.77,0.59844763]
[1740169323092,0.926,641.73,640.98,1.40620362]
[1740169323393,0.926,641.73,640.99,0.28634087]
[1740169323892,0.926,641.73,640.98,1.40620362]
[1740169324192,1.55055727,643.23,640.99,0.28629258]
[1740169324392,0.31098395,643.12,640.99,0.28629258]
[1740169324586,1.5303641,643.11,640.99,0.28629258]
[1740169324792,0.31103715,643.01,640.99,0.28629258]
[1740169324989,1.24704154,643.0,640.99,0.28629258]
[1740169325189,0.31109037,642.9,640.99,0.28629258]
[1740169325591,1.52985095,642.89,640.78,0.28629258]
[1740169325792,0.3111436,642.79,640.79,0.59840731]
[1740169325997,0.28332716,642.78,640.8,0.59840244]
[1740169326191,0.31115813,642.76,640.81,0.59839757]
[1740169326391,0.28332716,642.75,640.82,0.28629258]
[1740169326794,0.31117265,642.73,640.82,0.28629258]
[1740169326997,0.28332716,642.72,640.82,0.28629258]
[1740169327195,0.31118717,642.7,640.82,0.28629258]
[1740169327396,0.28332716,642.69,640.82,0.28629258]
[1740169327596,0.3112017,642.67,640.82,0.28629258]
[1740169327796,0.28332716,642.66,640.82,0.28629258]
[1740169327992,0.31121623,642.64,640.82,0.28629258]
[1740169328190,0.28332716,642.63,640.82,0.28629258]
[1740169328697,0.31123076,642.61,640.83,0.28629258]
[1740169328891,0.28332716,642.6,640.84,0.28629258]
[1740169329092,0.28332716,642.6,640.85,0.28629258]
[1740169329292,0.28332716,642.6,640.86,0.28629258]
[1740169329494,0.28332716,642.6,640.87,0.28629258]
[1740169329799,0.31123076,642.61,640.81,0.31210499]
[1740169329800,0.31123076,642.61,640.88,0.28629258]
[1740169330098,0.31123076,642.61,640.89,0.59835861]
[1740169330299,0.31123076,642.61,640.9,0.28629258]
[1740169331296,0.31123076,642.61,640.91,0.28629258]
[1740169331493,0.31123076,642.61,640.92,0.598344]
[1740169331693,0.31123076,642.61,640.93,0.28629258]
[1740169332398,0.31123076,642.61,640.94,0.31204168]
[1740169332593,0.31123076,642.61,640.95,0.28629258]
[1740169333403,0.28332447,642.6,640.96,0.28629258]
[1740169333608,0.28332447,642.6,640.97,0.28629258]
[1740169333909,0.31124529,642.58,640.98,0.28629258]
[1740169334108,0.28332447,642.57,640.99,0.28629258]
[1740169334308,0.31125982,642.55,640.94,0.31204168]
[1740169334508,0.31125982,642.55,640.95,0.2863068]
[1740169335910,0.31125982,642.55,640.94,0.31204168]
[1740169336110,0.31125982,642.55,640.95,0.28634597]
[1740169336512,0.28340034,642.54,640.95,0.28634597]
[1740169336708,0.31127435,642.52,640.95,0.28634597]
[1740169336916,0.28340034,642.51,640.95,0.28634597]
[1740169337213,0.31128889,642.49,640.95,0.28634597]
[1740169337413,0.28340034,642.48,640.95,0.28634597]
[1740169339008,0.31130342,642.46,640.95,0.28634597]
[1740169339214,0.28344976,642.45,640.96,0.28641996]
[1740169339516,0.28344976,642.45,640.97,0.28641996]
[1740169339719,0.28344976,642.45,640.98,0.28641996]
[1740169339910,0.31131796,642.43,640.99,0.28641996]
[1740169340218,0.28344976,642.42,641.0,0.28641996]
[1740169340516,0.3113325,642.4,641.01,0.28641996]
[1740169340716,0.28344976,642.39,640.95,0.28641996]
[1740169341016,0.31134704,642.37,640.96,0.28641996]
[1740169341218,0.31134704,642.37,640.94,0.31204168]
[1740169341219,0.28344976,642.36,640.97,0.28641996]
[1740169341517,0.31136158,642.34,640.98,0.28641996]
[1740169341716,0.28344976,642.33,640.99,0.28641996]
[1740169341913,0.28344976,642.33,640.94,0.31204168]
[1740169341914,0.28344976,642.33,641.0,0.28641996]
[1740169342114,0.31137612,642.31,641.01,0.28641996]
[1740169342316,0.28344976,642.3,640.95,0.28641996]
[1740169342517,0.31139067,642.28,640.96,0.28641996]
[1740169342717,0.31139067,642.28,640.97,0.28641996]
[1740169342917,0.31139067,642.28,640.98,0.28641996]
[1740169343217,0.31139067,642.28,640.99,0.28641996]
[1740169343414,0.31139067,642.28,640.96,0.28641996]
[1740169343619,0.31139067,642.28,640.97,0.28641996]
[1740169343918,0.31139067,642.28,640.98,0.28641996]
[1740169344121,0.31139067,642.28,640.96,0.28641996]
[1740169345315,0.31139067,642.28,640.97,0.28641996]
[1740169345517,0.31139067,642.28,640.95,0.28641996]
[1740169345719,0.31139067,642.28,640.96,0.28641996]
[1740169345915,0.31139067,642.28,640.95,0.28641996]
[1740169346215,0.31139067,642.28,640.96,0.28641996]
[1740169346419,0.31139067,642.28,640.95,0.28641996]
[1740169346617,0.31139067,642.28,640.96,0.28641996]
[1740169346817,0.31139067,642.28,640.95,0.28641996]
[1740169348025,0.31139067,642.28,640.96,0.2864298]
[1740169348226,0.28346198,642.27,640.95,0.2864298]
[1740169348520,0.31140521,642.25,640.96,0.2864298]
[1740169348726,0.31140521,642.25,640.97,0.2864298]
[1740169349019,0.31140521,642.25,640.98,0.2864298]
[1740169349225,0.31140521,642.25,640.81,0.2864298]
[1740169349424,0.31140521,642.25,640.82,0.2864298]
[1740169349622,0.31140521,642.25,640.81,0.2864298]
[1740169349824,0.31140521,642.25,640.82,0.2864298]
[1740169350122,0.31140521,642.25,640.83,0.2864298]
[1740169350323,0.31140521,642.25,640.84,0.2864298]
[1740169350527,0.31140521,642.25,640.85,0.2864298]
[1740169350720,0.31140521,642.25,640.86,0.2864298]
[1740169351021,0.31140521,642.25,640.87,0.2864298]
[1740169351224,0.31140521,642.25,640.83,1.40620362]
[1740169351225,0.31140521,642.25,640.84,0.2864298]
[1740169351822,0.31140521,642.25,640.85,0.31208551]
[1740169352024,0.31140521,642.25,640.86,0.2864298]
[1740169352320,0.31140521,642.25,640.94,1.40620362]
[1740169352526,0.31140521,642.25,640.95,0.2864298]
[1740169353919,0.31140521,642.25,640.94,0.2864298]
[1740169354120,0.31140521,642.25,640.95,0.2864298]
[1740169354323,0.31140521,642.25,640.94,0.2864298]
[1740169354522,0.31140521,642.25,640.95,0.2864298]
[1740169354726,0.31140521,642.25,640.96,0.2864298]
[1740169354927,0.31140521,642.25,640.97,0.2864298]
[1740169355127,0.31140521,642.25,640.98,0.2864298]
[1740169355430,0.31140521,642.25,640.94,0.2864298]
[1740169355630,0.31140521,642.25,640.95,0.2864298]
[1740169355827,0.31140521,642.25,640.87,0.2864298]
[1740169356023,0.31140521,642.25,640.86,0.31208064]
[1740169356024,0.31140521,642.25,640.88,0.2864298]
[1740169356227,0.31140521,642.25,640.89,0.2864298]
[1740169356428,0.31140521,642.25,640.9,0.2864298]
[1740169356623,0.31140521,642.25,640.87,0.2864298]
[1740169356825,0.31140521,642.25,640.88,0.2864298]
[1740169357023,0.31140521,642.25,640.87,0.2864298]
[1740169357224,0.31140521,642.25,640.88,0.2864298]
[1740169357528,0.31140521,642.25,640.89,0.2864298]
[1740169357724,0.31140521,642.25,640.9,0.2864298]
[1740169357929,0.31140521,642.25,640.87,0.2864298]
[1740169358131,0.31140521,642.25,640.88,0.2864298]
[1740169358526,0.31140521,642.25,640.86,0.31208064]
[1740169358724,0.31140521,642.25,640.87,0.28635322]
[1740169359233,0.966,642.24,640.87,0.28635322]
[1740169359426,0.31141491,642.23,640.87,0.28635322]
[1740169361726,0.31141491,642.23,640.86,0.31208064]
[1740169361931,0.31141491,642.23,640.87,0.28635312]
[1740169363733,1.038,642.22,640.87,0.28635312]
[1740169363928,0.31142461,642.21,640.87,0.28635312]
[1740169365132,0.31142461,642.21,640.91,1.40620362]
[1740169365437,0.31142461,642.21,640.92,0.28635312]
[1740169366540,0.31142461,642.21,640.91,1.40620362]
[1740169366733,0.31142461,642.21,640.92,0.28637117]
[1740169367834,0.31142461,642.21,641.04,1.40620362]
[1740169368039,0.31142461,642.21,641.05,0.28637117]
[1740169369738,0.31142461,642.21,641.04,1.40620362]
[1740169370043,0.31142461,642.21,641.05,1.692524]
[1740169370238,0.31142461,642.21,641.06,0.28632038]
[1740169371338,0.31142461,642.21,641.05,1.40620362]
[1740169371643,0.31142461,642.21,641.06,0.28633749]
[1740169372036,0.31142461,642.21,641.05,1.40620362]
[1740169372241,0.31142461,642.21,641.06,0.28629243]
[1740169372541,0.31142461,642.21,641.07,0.28629243]
[1740169372736,0.31142461,642.21,641.0,1.40620362]
[1740169372737,0.31142461,642.21,641.08,0.28629243]
[1740169372937,0.31142461,642.21,641.09,0.28629243]
[1740169373142,0.31142461,642.21,641.01,0.28629243]
[1740169373343,0.31142461,642.21,641.0,1.40620362]
[1740169373344,0.31142461,642.21,641.02,0.28629243]
[1740169373544,0.31142461,642.21,641.03,0.28629243]
[1740169373742,0.31142461,642.21,641.01,0.28629243]
[1740169373938,0.31142461,642.21,641.02,0.28629243]
[1740169374145,0.31142461,642.21,641.03,0.28629243]
[1740169374346,0.31142461,642.21,641.04,0.28629243]
[1740169374541,0.31142461,642.21,641.05,0.28627378]
[1740169374846,0.31142461,642.21,641.06,0.28627378]
[1740169375039,0.31142461,642.21,640.88,0.28627378]
[1740169375240,0.31142461,642.21,640.89,0.28627378]
[1740169375443,0.31142461,642.21,640.9,0.28627378]
[1740169375647,0.31142461,642.21,640.91,0.28627378]
[1740169375841,0.31142461,642.21,640.92,0.28627378]
[1740169376145,0.31142461,642.21,640.93,0.28627378]
[1740169376346,0.31142461,642.21,640.88,0.28627378]
[1740169377343,0.31142461,642.21,640.89,0.28627378]
[1740169377544,0.31142461,642.21,640.9,0.28627378]
[1740169377943,0.31142461,642.21,640.91,0.28627378]
[1740169378141,0.31142461,642.21,640.92,0.28627378]
[1740169378344,0.31142461,642.21,640.87,0.28627378]
[1740169378548,0.31142461,642.21,640.88,0.28627378]
[1740169378743,0.31142461,642.21,640.87,0.28627378]
[1740169379148,0.31142461,642.21,640.9,1.40620362]
[1740169379542,0.31142461,642.21,640.91,0.28633325]
[1740169380141,0.31142461,642.21,640.92,0.28633467]
[1740169380345,0.31142461,642.21,640.93,0.28633467]
[1740169380542,0.31142461,642.21,641.12,1.40620362]
[1740169380745,0.31142461,642.21,641.13,0.28633467]
[1740169382144,0.31142461,642.21,641.14,0.28636639]
[1740169382349,0.31142461,642.21,641.15,0.28636639]
[1740169382548,0.31142461,642.21,641.16,0.28636639]
[1740169382750,0.31142461,642.21,641.13,0.28636639]
[1740169383050,0.31142461,642.21,641.14,0.28636639]
[1740169383245,0.31142461,642.21,641.19,1.40620362]
[1740169383551,0.31142461,642.21,641.2,0.28636639]
[1740169385847,0.31142461,642.21,641.21,0.28636639]
[1740169386051,0.31142461,642.21,641.22,0.28636639]
[1740169386250,0.31142461,642.21,641.1,0.28636639]
[1740169386447,0.31142461,642.21,641.09,1.40620362]
[1740169386448,0.31142461,642.21,641.11,0.28636639]
[1740169386753,0.31142461,642.21,641.12,0.28636639]
[1740169386952,0.31142461,642.21,641.09,1.40620362]
[1740169387147,0.31142461,642.21,641.1,0.28605168]
[1740169387954,0.31142461,642.21,641.0,0.28605168]
[1740169390147,0.31142461,642.21,641.01,0.31200761]
[1740169390353,0.31142461,642.21,641.02,0.28605168]
[1740169391854,0.31142461,642.21,641.01,0.31200761]
[1740169392068,0.31142461,642.21,641.02,0.28607053]
[1740169392250,0.31142461,642.21,641.03,0.28607053]
[1740169392455,0.31142461,642.21,641.04,0.28607053]
[1740169392648,0.31142461,642.21,641.05,0.28607053]
[1740169392852,0.31142461,642.21,641.06,0.28607053]
[1740169393053,0.31142461,642.21,641.06,1.40620362]
[1740169393257,0.31142461,642.21,641.07,0.28607053]
[1740169393557,0.31142461,642.21,641.06,1.40620362]
[1740169393758,0.31142461,642.21,641.07,0.28619583]
[1740169395454,0.31142461,642.21,641.02,0.28619583]
[1740169395755,0.31142461,642.21,641.03,0.28619583]
[1740169395960,0.31142461,642.21,641.02,0.28619583]
[1740169398263,0.31142461,642.21,641.03,0.28637893]
[1740169398463,0.31142461,642.21,641.02,0.28637893]
[1740169398662,0.31142461,642.21,641.03,0.849]
[1740169398963,0.31142461,642.21,641.04,0.28637893]
[1740169399664,1.02496297,642.2,641.04,0.28637893]
[1740169400159,0.31143916,642.18,641.03,0.849]
[1740169400357,1.26547962,642.17,641.04,0.28640953]
[1740169400555,2.46797972,642.16,641.04,0.28640953]
[1740169400762,4.49305574,642.15,641.04,0.28640953]
[1740169400961,7.15829105,642.14,641.04,0.28640953]
[1740169401157,4.49305574,642.13,641.04,0.28640953]
[1740169401359,0.31147311,642.11,641.04,0.28640953]
[1740169401559,3.20988822,642.1,641.04,0.28640953]
[1740169401758,1.26560762,642.09,641.03,0.849]
[1740169401957,1.26560762,642.08,641.04,0.28647997]
[1740169402161,1.02529455,642.1,641.04,0.28647997]
[1740169402359,1.02529455,642.07,641.04,0.28647997]
[1740169402865,1.02529455,642.06,641.04,0.28647997]
[1740169403559,1.02529455,642.06,641.05,0.28649521]
[1740169403759,3.20827969,642.05,641.03,0.849]
[1740169403959,2.18298514,642.04,641.03,0.849]
[1740169404164,1.02529455,642.05,641.03,0.849]
[1740169404165,2.18298514,642.03,641.03,0.849]
[1740169404365,2.18298514,642.02,641.03,0.849]
[1740169404661,2.18260702,642.01,641.03,0.849]
[1740169404867,1.26463837,642.0,641.03,0.849]
[1740169405067,1.02529455,642.02,641.03,0.849]
[1740169405266,0.31153618,641.98,641.03,0.849]
[1740169405460,0.31153618,641.98,641.04,0.28652217]
[1740169405663,0.31153618,641.98,641.03,0.849]
[1740169405865,2.46500971,641.97,641.03,0.849]
[1740169406067,0.31155074,641.95,641.03,0.849]
[1740169406366,0.2836102,641.94,641.03,0.849]
[1740169406567,0.3115653,641.92,641.03,0.849]
[1740169406761,2.4650597,641.91,641.03,0.849]
[1740169406966,5.95446701,641.9,641.03,0.849]
[1740169407167,2.18139951,641.89,641.03,0.849]
[1740169407362,5.66970939,641.88,641.03,0.849]
[1740169407569,5.66800764,641.87,641.03,0.849]
[1740169407866,2.18139951,641.86,641.03,0.849]
[1740169408069,4.19988436,641.85,641.03,0.849]
[1740169408269,2.18139951,641.84,641.03,0.849]
[1740169408468,2.18139951,641.83,641.03,0.849]
[1740169408769,2.18139951,641.82,641.03,0.849]
[1740169408970,2.18139951,641.81,641.03,0.849]
[1740169409269,2.18139951,641.8,641.03,0.849]
[1740169409565,1.26372656,641.79,641.03,0.849]
[1740169409869,1.02529455,641.78,641.03,0.849]
[1740169410764,0.3115653,641.92,641.03,0.849]
[1740169410970,0.28360626,641.91,641.03,0.849]
[1740169411564,0.3115653,641.92,641.03,0.849]
[1740169413865,0.3115653,641.92,641.04,0.28636095]
[1740169414566,0.3115653,641.92,641.05,0.28636095]
[1740169414769,0.3115653,641.92,640.17,0.28636095]
[1740169414969,0.3115653,641.92,640.18,0.28636095]
[1740169415171,0.3115653,641.92,640.19,0.28636095]
[1740169415365,0.3115653,641.92,640.2,0.28636095]
[1740169415569,0.3115653,641.92,640.22,0.31239261]
[1740169415766,0.3115653,641.92,640.23,0.28636095]
[1740169416069,0.3115653,641.92,640.24,0.28636095]
[1740169416270,0.3115653,641.92,640.25,0.28636095]
[1740169416573,0.3115653,641.92,640.22,0.31239261]
[1740169416574,0.3115653,641.92,640.26,0.28631761]
[1740169416768,0.3115653,641.92,640.27,0.28631761]
[1740169417071,0.3115653,641.92,640.28,0.28631761]
[1740169417370,1.079,641.91,640.29,0.28631761]
[1740169417570,1.079,641.91,640.3,0.28631761]
[1740169417767,1.079,641.91,640.31,0.59866631]
[1740169417971,1.079,641.91,640.32,0.28631761]
[1740169418173,1.079,641.91,640.33,0.28631761]
[1740169418471,1.079,641.91,640.31,0.3123487]
[1740169418472,1.079,641.91,640.34,0.28631761]
[1740169418667,1.079,641.91,640.35,0.28631761]
[1740169418872,1.079,641.91,640.36,0.28631761]
[1740169419074,1.079,641.91,640.37,0.28631761]
[1740169419273,1.079,641.91,640.38,0.28631761]
[1740169419476,1.079,641.91,640.39,0.28631761]
[1740169419671,1.079,641.91,640.4,0.28634084]
[1740169419974,1.079,641.91,640.41,0.28634084]
[1740169420175,1.079,641.91,640.42,0.28634084]
[1740169420376,1.079,641.91,640.43,0.59863102]
[1740169420580,1.079,641.91,640.44,0.59862614]
[1740169420778,1.079,641.91,640.45,0.59862126]
[1740169420973,1.079,641.91,640.46,0.28634084]
[1740169421177,0.31157501,641.9,640.47,0.59861151]
[1740169421376,0.31157501,641.9,640.48,0.59860664]
[1740169421577,0.31157501,641.9,640.49,0.59860176]
[1740169421771,0.31157501,641.9,640.5,0.59859688]
[1740169421975,0.31157501,641.9,640.51,0.59859201]
[1740169422276,0.31157501,641.9,640.52,0.28634084]
[1740169422477,0.31157501,641.9,640.53,0.28634084]
[1740169422672,0.31157501,641.9,640.54,0.28634084]
[1740169422871,0.31157501,641.9,640.55,0.28625729]
[1740169423072,0.31157501,641.9,640.56,0.28625729]
[1740169423274,0.31157501,641.9,640.57,0.28625729]
[1740169423478,0.31157501,641.9,640.52,0.28625729]
[1740169423673,0.31157501,641.9,640.53,0.28625729]
[1740169423873,0.31157501,641.9,640.54,0.28625729]
[1740169424076,0.31157501,641.9,640.55,0.28625729]
[1740169424274,0.31157501,641.9,640.52,0.28625729]
[1740169424478,0.31157501,641.9,640.53,0.59849871]
[1740169424679,0.31157501,641.9,640.54,0.59849384]
[1740169424980,0.31157501,641.9,640.55,0.59848896]
[1740169425181,0.31157501,641.9,640.56,0.59848409]
[1740169425480,0.31157501,641.9,640.57,0.28625729]
[1740169425680,0.31157501,641.9,640.58,0.31221705]
[1740169425881,0.31157501,641.9,640.59,0.28625729]
[1740169426079,0.31157501,641.9,640.6,0.28610738]
[1740169426282,0.31157501,641.9,640.61,0.28610738]
[1740169426481,0.31157501,641.9,640.58,0.31221705]
[1740169426482,0.31157501,641.9,640.62,0.28610738]
[1740169426681,0.31157501,641.9,640.63,0.28610738]
[1740169426882,0.31157501,641.9,640.64,0.28610738]
[1740169427076,0.31157501,641.9,640.65,0.28610738]
[1740169427282,0.31157501,641.9,640.66,0.28610738]
[1740169427481,0.31157501,641.9,640.67,0.28610738]
[1740169427781,0.31157501,641.9,640.68,0.28610738]
[1740169427981,0.31157501,641.9,640.69,0.28610738]
[1740169428182,0.31157501,641.9,640.7,0.28610738]
[1740169428377,0.31157501,641.9,640.71,0.28610738]
[1740169428578,0.31157501,641.9,640.72,0.28610738]
[1740169428779,0.31157501,641.9,640.73,0.28610738]
[1740169428982,0.31157501,641.9,640.58,0.31221705]
[1740169429183,0.31157501,641.9,640.59,0.28581867]
[1740169429383,0.31157501,641.9,640.6,0.28581867]
[1740169429686,0.31157501,641.9,640.61,0.28581867]
[1740169429982,0.31157501,641.9,640.78,1.40620362]
[1740169430178,0.31157501,641.9,640.79,0.28581867]
[1740169430982,0.31157501,641.9,640.78,1.40620362]
[1740169430983,0.31157501,641.9,640.8,0.28565207]
[1740169431186,0.31157501,641.9,640.81,0.28565207]
[1740169431384,0.31157501,641.9,640.79,0.28565207]
[1740169432387,0.31157501,641.9,640.8,0.59776193]
[1740169432580,0.31157501,641.9,640.81,0.2855849]
[1740169432781,0.31157501,641.9,640.81,0.59768989]
[1740169432984,0.31157501,641.9,640.82,0.2855849]
[1740169436088,0.31157501,641.9,640.83,0.2855849]
[1740169436288,0.31157501,641.9,640.81,0.31210499]
[1740169436289,0.31157501,641.9,640.82,0.2855849]
[1740169436482,0.31157501,641.9,640.83,0.2855849]
[1740169436681,0.31157501,641.9,640.82,0.2855849]
[1740169436886,0.31157501,641.9,640.83,0.2855849]
[1740169437088,0.31157501,641.9,640.84,0.2855849]
[1740169437288,0.31157501,641.9,640.85,0.2855849]
[1740169437489,0.31157501,641.9,640.86,0.2855849]
[1740169437684,0.31157501,641.9,640.82,0.2855849]
[1740169437889,0.31157501,641.9,640.83,0.2855849]
[1740169438086,0.31157501,641.9,640.84,0.2855849]
[1740169438291,0.31157501,641.9,640.85,0.2855849]
[1740169438490,0.31157501,641.9,640.86,0.2855849]
[1740169438691,0.31157501,641.9,640.81,0.31210499]
[1740169438692,0.31157501,641.9,640.87,0.2855849]
[1740169438891,0.31157501,641.9,640.88,0.2855849]
[1740169439086,0.31157501,641.9,640.82,0.2855849]
[1740169439391,0.31157501,641.9,640.83,0.2855849]
[1740169439591,0.31157501,641.9,640.84,0.2855849]
[1740169439891,0.31157501,641.9,640.85,0.2855849]
[1740169440087,0.31157501,641.9,640.82,0.2855849]
[1740169440292,0.31157501,641.9,640.83,0.2855849]
[1740169440491,0.31157501,641.9,640.82,0.2855849]
[1740169440791,0.31157501,641.9,640.83,0.2855849]
[1740169440992,0.31157501,641.9,640.82,0.2855849]
[1740169441191,0.31157501,641.9,640.83,0.2855849]
[1740169441392,0.31157501,641.9,640.82,0.2855849]
[1740169441593,0.31157501,641.9,640.83,0.2855849]
[1740169441792,0.31157501,641.9,640.81,0.31210499]
[1740169441989,0.31157501,641.9,640.82,0.28556256]
[1740169442293,0.31157501,641.9,640.83,0.28556256]
[1740169442492,0.31157501,641.9,640.84,0.28556256]
[1740169442694,0.31157501,641.9,640.85,0.28556256]
[1740169442892,0.31157501,641.9,640.86,0.28556256]
[1740169443097,0.31157501,641.9,640.87,0.28556256]
[1740169443392,0.31157501,641.9,640.88,0.28556256]
[1740169443593,0.31157501,641.9,640.82,0.28556256]
[1740169443790,0.31157501,641.9,640.84,0.31209038]
[1740169443987,0.31157501,641.9,640.85,0.28556256]
[1740169444993,0.31157501,641.9,640.84,0.31209038]
[1740169445195,0.31157501,641.9,640.85,0.28527226]
[1740169445894,0.31157501,641.9,640.84,0.31209038]
[1740169445895,0.31157501,641.9,640.86,0.28527226]
[1740169446092,0.31157501,641.9,640.87,0.28527226]
[1740169446290,0.31157501,641.9,640.88,0.28527226]
[1740169446495,0.31157501,641.9,640.89,0.28527226]
[1740169446692,0.31157501,641.9,640.9,0.28527226]
[1740169446990,0.31157501,641.9,640.91,0.28527226]
[1740169447189,0.31157501,641.9,640.85,0.28527226]
[1740169447390,0.31157501,641.9,640.84,0.31209038]
[1740169447391,0.31157501,641.9,640.86,0.28527226]
[1740169447595,0.31157501,641.9,640.85,0.28527226]
[1740169447796,0.31157501,641.9,640.86,0.28527226]
[1740169448099,0.31157501,641.9,640.87,0.28527226]
[1740169448299,0.31157501,641.9,640.85,0.28527226]
[1740169448494,0.31157501,641.9,640.86,0.28527226]
[1740169448690,0.31157501,641.9,640.84,0.31209038]
[1740169448691,0.31157501,641.9,640.85,0.28527226]
[1740169455595,0.31157501,641.9,640.66,0.28527226]
[1740169455799,0.31157501,641.9,640.67,0.28527226]
[1740169456001,0.31157501,641.9,640.66,0.28527226]
[1740169456200,0.31157501,641.9,640.67,0.28527226]
[1740169456402,0.31157501,641.9,640.66,0.28527226]
[1740169456602,0.31157501,641.9,640.67,0.28527226]
[1740169456801,0.31157501,641.9,640.68,0.28527226]
[1740169457002,0.31157501,641.9,640.69,0.28527226]
[1740169457200,0.31157501,641.9,640.7,0.28527226]
[1740169457400,0.31157501,641.9,640.64,0.28527226]
[1740169457596,0.31157501,641.9,640.65,0.28527226]
[1740169457803,0.31157501,641.9,640.64,0.28527226]
[1740169458003,0.31157501,641.9,640.63,1.40620362]
[1740169458299,0.31157501,641.9,640.64,0.28579886]
[1740169458496,0.31157501,641.9,640.65,0.28579886]
[1740169458695,0.31157501,641.9,640.62,0.28579886]
[1740169458898,0.31157501,641.9,640.63,0.28579886]
[1740169459098,0.31157501,641.9,640.62,0.28579886]
[1740169459301,0.31157501,641.9,640.63,0.28579886]
[1740169459501,0.31157501,641.9,640.64,0.28579886]
[1740169459803,0.31157501,641.9,640.65,0.28579886]
[1740169459997,0.31157501,641.9,640.52,0.28579886]
[1740169460198,0.31157501,641.9,640.53,0.28579886]
[1740169460399,0.31157501,641.9,640.54,0.28579886]
[1740169460600,0.827,641.89,640.55,0.28579886]
[1740169460799,0.827,641.89,640.56,0.28579886]
[1740169461103,0.827,641.89,640.57,0.28579886]
[1740169461303,0.827,641.89,640.58,0.28579886]
[1740169461504,0.827,641.89,640.59,0.28579886]
[1740169461804,0.827,641.89,640.6,0.28579886]
[1740169462104,0.827,641.89,640.61,0.28579886]
[1740169462304,0.827,641.89,640.73,1.40620362]
[1740169462504,0.827,641.89,640.74,0.28579886]
[1740169464605,0.827,641.89,640.71,1.40620362]
[1740169464806,0.827,641.89,640.72,0.28543028]
[1740169464998,0.827,641.89,640.73,0.28543028]
[1740169465202,0.827,641.89,640.74,0.28543028]
[1740169465403,0.827,641.89,640.72,0.28543028]
[1740169465604,0.827,641.89,640.73,0.28543028]
[1740169465799,0.827,641.89,640.72,0.28543028]
[1740169466007,0.827,641.89,640.73,0.28543028]
[1740169466206,0.827,641.89,640.74,0.28543028]
[1740169466402,0.827,641.89,640.79,1.40620362]
[1740169466601,0.827,641.89,640.8,0.28543028]
[1740169468609,0.827,641.89,640.86,1.40620362]
[1740169468810,0.827,641.89,640.87,0.28543028]
[1740169471411,0.827,641.89,640.88,0.28543028]
[1740169471709,0.827,641.89,640.89,0.28543028]
[1740169471913,0.827,641.89,640.79,0.28543028]
[1740169472114,0.827,641.89,640.8,0.28543028]
[1740169472314,0.827,641.89,640.79,0.28543028]
[1740169472508,0.827,641.89,640.8,0.28543028]
[1740169472710,0.827,641.89,640.81,0.28543028]
[1740169472913,0.827,641.89,640.82,0.28543028]
[1740169473110,0.827,641.89,640.83,0.28543028]
[1740169473314,0.827,641.89,640.66,0.28543028]
[1740169473514,0.827,641.89,640.67,0.28543028]
[1740169473711,0.827,641.89,640.66,0.28543028]
[1740169473916,0.827,641.89,640.67,0.28543028]
[1740169474215,0.827,641.89,640.68,0.28543028]
[1740169474411,0.827,641.89,640.58,1.40620362]
[1740169474614,0.827,641.89,640.59,0.28521586]
[1740169475919,0.827,641.89,640.56,0.28521586]
[1740169476116,0.827,641.89,640.57,0.28521586]
[1740169476317,0.827,641.89,640.56,0.28521586]
[1740169476518,0.827,641.89,640.57,0.28521586]
[1740169476714,0.827,641.89,640.56,0.28521586]
[1740169476916,0.827,641.89,640.57,0.28521586]
[1740169477117,0.827,641.89,640.56,0.28521586]
[1740169477321,0.827,641.89,640.57,0.28521586]
[1740169477615,0.827,641.89,640.55,1.40620362]
[1740169477616,0.827,641.89,640.58,0.28521586]
[1740169477819,0.827,641.89,640.59,0.28521586]
[1740169478122,0.827,641.89,640.6,0.28521586]
[1740169478323,0.827,641.89,640.52,0.28521586]
[1740169478518,0.827,641.89,640.53,0.28521586]
[1740169478821,0.827,641.89,640.45,1.40620362]
[1740169478822,0.827,641.89,640.54,0.28521586]
[1740169479022,0.827,641.89,640.52,0.28521586]
[1740169479217,0.827,641.89,640.53,0.28521586]
[1740169479421,0.827,641.89,640.52,0.28521586]
[1740169479623,0.827,641.89,640.53,0.28521586]
[1740169479924,0.827,641.89,640.54,0.28521586]
[1740169480125,0.827,641.89,640.52,0.28521586]
[1740169480425,0.827,641.89,640.53,0.28521586]
[1740169480620,0.827,641.89,640.52,0.28521586]
[1740169480825,0.827,641.89,640.53,0.28521586]
[1740169481025,0.827,641.89,640.52,0.28521586]
[1740169481625,0.827,641.89,640.53,0.28563921]
[1740169481820,0.827,641.89,640.52,0.28563921]